bitfinex-derivatives/quotes_BTCF0:USTF0_20250704
["timestamp","ask_amount","ask_price","bid_price","bid_amount"]
[1751639428987,1.93658125,108010.0,108000.0,0.007]
[1751639429387,0.1851236,108000.0,107990.0,0.4691698]
[1751639429589,0.20477621,108000.0,107990.0,0.5028849]
[1751639429888,0.56067106,108000.0,107990.0,0.5028849]
[1751639430287,0.56067106,108000.0,107990.0,1.06877975]
[1751639430288,0.01965261,108000.0,107990.0,1.06877975]
[1751639430591,1.11641621,108000.0,107990.0,1.06877975]
[1751639430790,1.11641621,108000.0,107990.0,1.07077975]
[1751639430986,0.20477621,108000.0,107990.0,1.07077975]
[1751639431290,1.11629621,108000.0,107990.0,1.07077975]
[1751639431485,1.11629621,108000.0,107990.0,0.7158849]
[1751639431686,1.11629621,108000.0,107990.0,1.07177975]
[1751639431890,0.20477621,108000.0,107990.0,1.07177975]
[1751639432091,0.56067106,108000.0,107990.0,0.3796157]
[1751639432282,2.45308591,108000.0,107990.0,0.00485194]
[1751639432486,2.56368591,108000.0,107990.0,0.00485194]
[1751639433084,0.1851751,107970.0,107960.0,0.45297145]
[1751639433286,1.45234995,107970.0,107960.0,0.44275941]
[1751639433486,1.78234995,107970.0,107960.0,0.38275941]
[1751639433884,1.45234995,107970.0,107960.0,0.07106396]
[1751639434103,1.96514995,107970.0,107960.0,0.01366396]
[1751639434590,1.96614995,107970.0,107960.0,0.01966396]
[1751639434989,2.22130995,107970.0,107960.0,0.01966396]
[1751639435193,2.5772048,107970.0,107960.0,0.01966396]
[1751639435490,0.1851922,107960.0,107950.0,0.00185262]
[1751639435694,0.96928705,107960.0,107950.0,0.00185262]
[1751639435881,1.05958799,107960.0,107950.0,0.00185262]
[1751639436291,1.05658799,107960.0,107950.0,0.00185262]
[1751639436487,0.6103922,107960.0,107950.0,0.18706202]
[1751639436693,2.22266799,107960.0,107950.0,0.00185262]
[1751639436894,0.3013922,107960.0,107950.0,0.18706202]
[1751639437090,0.1831922,107960.0,107950.0,0.79875781]
[1751639437284,0.17121847,107980.0,107970.0,0.1851751]
[1751639437489,0.1851751,107970.0,107960.0,0.5012651]
[1751639437694,1.4259751,107970.0,107960.0,0.6345651]
[1751639437895,1.0959751,107970.0,107960.0,0.6345651]
[1751639438095,1.0959351,107970.0,107960.0,0.6345651]
[1751639438298,1.0959351,107970.0,107960.0,0.6305651]
[1751639438590,1.91213089,107970.0,107960.0,0.01]
[1751639438795,1.91213089,107970.0,107950.0,0.28965262]
[1751639438796,0.1851922,107960.0,107950.0,0.11655262]
[1751639438990,0.1851922,107960.0,107950.0,0.30176212]
[1751639438991,1.10708799,107960.0,107950.0,0.30176212]
[1751639439292,1.10106614,107960.0,107950.0,0.00185262]
[1751639439596,0.1852438,107930.0,107920.0,0.29566027]
[1751639439792,1.08681026,107930.0,107920.0,0.71798849]
[1751639440392,1.08581026,107930.0,107920.0,0.71798849]
[1751639440692,0.17521026,107930.0,107920.0,1.17533392]
[1751639440997,1.08565026,107930.0,107920.0,0.73113813]
[1751639441397,1.08565026,107930.0,107920.0,0.67367419]
[1751639441896,1.91184605,107930.0,107920.0,0.13248817]
[1751639442092,1.53184605,107930.0,107920.0,0.01978817]
[1751639442394,0.2779124,107920.0,107910.0,0.44619579]
[1751639442596,1.0956376,107920.0,107910.0,1.08803715]
[1751639442795,1.0956376,107920.0,107910.0,1.27336515]
[1751639442984,1.0955576,107920.0,107910.0,1.27336515]
[1751639443593,1.0945576,107920.0,107910.0,1.27336515]
[1751639443795,1.0945576,107920.0,107910.0,1.08803715]
[1751639443996,1.0965576,107920.0,107910.0,0.64284136]
[1751639444198,1.0965576,107920.0,107910.0,0.65399761]
[1751639444496,1.0985576,107920.0,107910.0,0.65699761]
[1751639444998,1.0983976,107920.0,107910.0,0.65699761]
[1751639445698,0.1882776,107920.0,107910.0,0.78507626]
[1751639445894,1.0982776,107920.0,107910.0,1.23127205]
[1751639446891,1.0982776,107920.0,107910.0,0.78507626]
[1751639447093,1.0981176,107920.0,107910.0,1.23127205]
[1751639447591,1.09820996,107920.0,107910.0,1.24526808]
[1751639447792,1.09821667,107920.0,107910.0,1.24526808]
[1751639447997,1.0981176,107920.0,107910.0,1.24526808]
[1751639448387,1.09822171,107920.0,107910.0,1.24526808]
[1751639448593,1.09823118,107920.0,107910.0,1.24526808]
[1751639448789,1.0981176,107920.0,107910.0,0.79907229]
[1751639448996,1.0979976,107920.0,107910.0,0.79907229]
[1751639451600,1.0986208,107920.0,107910.0,0.79907229]
[1751639454302,1.09870126,107920.0,107910.0,0.79909535]
[1751639454602,1.0986208,107920.0,107910.0,0.79909535]
[1751639454805,1.0986208,107920.0,107910.0,0.85589535]
[1751639457204,1.09869083,107920.0,107910.0,0.85589535]
[1751639457399,1.0986208,107920.0,107910.0,0.85589514]
[1751639458397,1.09873438,107920.0,107910.0,0.85589514]
[1751639458712,1.0986208,107920.0,107910.0,0.85589514]
[1751639459106,1.08958625,107920.0,107910.0,0.85589514]
[1751639460005,1.14988625,107920.0,107910.0,0.85589514]
[1751639460406,1.14988625,107920.0,107910.0,0.79949515]
[1751639460598,1.20638625,107920.0,107910.0,0.79949515]
[1751639460798,0.1168,107920.0,107910.0,0.79949515]
[1751639461006,0.3350823,107930.0,107920.0,0.1852606]
[1751639461201,1.290477,107930.0,107920.0,1.03695393]
[1751639461506,1.73667279,107930.0,107920.0,0.59075814]
[1751639461704,1.79427279,107930.0,107920.0,0.53375814]
[1751639461904,2.12427279,107930.0,107920.0,0.34849754]
[1751639462104,0.1852607,107920.0,107910.0,0.001]
[1751639462401,2.00747551,107920.0,107910.0,0.3162778]
[1751639462706,2.00847551,107920.0,107910.0,0.13]
[1751639462903,2.00747551,107920.0,107910.0,0.14052804]
[1751639463100,1.98710693,107920.0,107910.0,0.14052804]
[1751639463302,2.31810693,107920.0,107910.0,0.13]
[1751639463503,1.99110693,107920.0,107910.0,0.131]
[1751639463904,1.9912073,107920.0,107910.0,0.131]
[1751639464099,1.99121731,107920.0,107910.0,0.131]
[1751639464299,1.99110693,107920.0,107910.0,0.131]
[1751639464503,2.35110693,107920.0,107910.0,0.131]
[1751639464809,2.35110693,107920.0,107910.0,0.133]
[1751639465306,0.324322,107890.0,107880.0,0.2316526]
[1751639465605,0.324322,107890.0,107880.0,0.61567437]
[1751639465606,1.231882,107890.0,107880.0,0.61567437]
[1751639465807,1.344602,107890.0,107880.0,0.67467437]
[1751639466505,1.0927295,107890.0,107880.0,1.46087016]
[1751639466706,1.0927295,107890.0,107880.0,1.57427016]
[1751639467101,1.0926895,107890.0,107880.0,1.57427016]
[1751639467305,1.0946895,107890.0,107880.0,1.57527016]
[1751639467803,0.002,107890.0,107880.0,1.23527016]
[1751639468006,0.2315857,107920.0,107880.0,1.59399025]
[1751639468212,1.11727899,107920.0,107910.0,0.3242282]
[1751639468403,1.11827899,107920.0,107910.0,1.00523779]
[1751639468608,1.11827899,107920.0,107910.0,0.5127263]
[1751639468609,1.61917478,107920.0,107910.0,0.5127263]
[1751639468812,2.28770967,107920.0,107890.0,0.1389804]
[1751639469109,0.64208837,107900.0,107890.0,0.6442787]
[1751639469312,1.10301258,107900.0,107890.0,0.6442787]
[1751639469498,1.15771258,107900.0,107890.0,0.6442787]
[1751639469702,1.21531258,107900.0,107890.0,0.5516249]
[1751639470009,1.84781547,107900.0,107890.0,0.5053124]
[1751639470206,1.84790225,107900.0,107890.0,0.1853124]
[1751639470513,0.1853124,107890.0,107880.0,0.40119887]
[1751639470808,0.2989124,107890.0,107880.0,0.67119887]
[1751639470998,0.3565124,107890.0,107880.0,0.68174127]
[1751639471203,0.3565124,107890.0,107880.0,0.28768987]
[1751639471402,0.80270819,107890.0,107880.0,0.08768987]
[1751639471710,0.3565124,107890.0,107880.0,0.08768987]
[1751639471910,0.80170819,107890.0,107880.0,0.33768987]
[1751639472109,0.1853296,107880.0,107870.0,0.30767795]
[1751639472411,1.2037496,107880.0,107870.0,0.54109392]
[1751639472706,0.1046296,107890.0,107870.0,0.80195791]
[1751639472906,0.3362844,107890.0,107880.0,0.63152539]
[1751639473211,1.24167617,107890.0,107880.0,0.96032539]
[1751639473410,1.29817617,107890.0,107880.0,0.96032539]
[1751639473610,1.25184557,107890.0,107880.0,0.96032539]
[1751639473805,0.1853124,107890.0,107880.0,0.5736296]
[1751639474000,1.0917924,107890.0,107880.0,1.58520939]
[1751639474199,0.90648,107890.0,107880.0,1.58520939]
[1751639474407,0.30976916,107900.0,107890.0,0.1853124]
[1751639474608,1.0936952,107900.0,107890.0,1.47912575]
[1751639474904,1.0916952,107900.0,107890.0,1.15472575]
[1751639475114,0.4361579,107910.0,107900.0,0.1852952]
[1751639475306,1.36738207,107910.0,107900.0,0.99179099]
[1751639475507,0.3344347,107910.0,107900.0,0.99179099]
[1751639475707,1.2407547,107910.0,107900.0,0.99179099]
[1751639475908,1.2417547,107910.0,107900.0,0.99179099]
[1751639476108,1.2417547,107910.0,107900.0,0.5455952]
[1751639476316,1.2990547,107910.0,107900.0,0.5455952]
[1751639476614,1.3597547,107910.0,107900.0,0.4852952]
[1751639476800,1.80595049,107910.0,107900.0,0.4852952]
[1751639477205,1.80895049,107910.0,107900.0,0.3]
[1751639477413,0.1852952,107900.0,107890.0,0.2779504]
[1751639477604,0.3017952,107900.0,107890.0,0.5579504]
[1751639479014,0.3047952,107900.0,107890.0,0.5579504]
[1751639479202,0.3067952,107900.0,107890.0,0.5579504]
[1751639480112,0.3067952,107900.0,107890.0,0.2816253]
[1751639480319,0.3067952,107900.0,107890.0,0.5316253]
[1751639480613,0.3067952,107900.0,107890.0,0.97782109]
[1751639480809,1.0958952,107900.0,107890.0,1.34412109]
[1751639481111,1.0958952,107900.0,107890.0,1.46352109]
[1751639482102,1.0958952,107900.0,107890.0,1.15352109]
[1751639482306,1.0958952,107900.0,107890.0,0.7073253]
[1751639482506,1.0958952,107900.0,107890.0,1.15352109]
[1751639482707,1.1551952,107900.0,107890.0,1.15352109]
[1751639485215,1.1551952,107900.0,107890.0,1.48352109]
[1751639485615,1.0958952,107900.0,107890.0,1.15352109]
[1751639485818,1.0958952,107900.0,107890.0,1.56696535]
[1751639486415,1.0958952,107900.0,107890.0,1.22696535]
[1751639486619,1.0958952,107900.0,107890.0,1.57696535]
[1751639487916,1.09600872,107900.0,107890.0,1.57696535]
[1751639488112,1.0958952,107900.0,107890.0,1.57696535]
[1751639488725,0.1902952,107900.0,107890.0,1.57696535]
[1751639488912,0.01971919,107910.0,107900.0,0.1852952]
[1751639489214,0.01971919,107910.0,107900.0,1.48733673]
[1751639489409,0.40018563,107930.0,107920.0,0.1852609]
[1751639489610,1.30566563,107930.0,107920.0,0.93145669]
[1751639489806,1.30566563,107930.0,107920.0,0.99215669]
[1751639490016,1.30466563,107930.0,107920.0,0.99215669]
[1751639490216,0.40018563,107930.0,107920.0,1.06610733]
[1751639490612,1.30454563,107930.0,107920.0,1.06610733]
[1751639490817,1.30554563,107930.0,107920.0,1.06610733]
[1751639491116,1.30554563,107930.0,107920.0,0.61991154]
[1751639491421,1.36064563,107930.0,107920.0,0.01]
[1751639491615,1.80684142,107930.0,107920.0,0.01]
[1751639491817,1.80684142,107930.0,107920.0,0.1952609]
[1751639492122,1.62048563,107930.0,107920.0,0.93975651]
[1751639492619,1.6205791,107930.0,107920.0,0.49356072]
[1751639492920,1.62048563,107930.0,107920.0,0.49356072]
[1751639493313,2.06668142,107930.0,107920.0,0.24356072]
[1751639493509,0.90948142,107930.0,107920.0,0.49356072]
[1751639493820,1.61912563,107930.0,107920.0,0.49256072]
[1751639494018,0.26724703,107930.0,107920.0,0.93875651]
[1751639494211,1.17112703,107930.0,107920.0,1.12520715]
[1751639495121,0.27024703,107930.0,107920.0,1.12520715]
[1751639495316,1.17404703,107930.0,107920.0,1.12520715]
[1751639495512,1.17304703,107930.0,107920.0,1.12520715]
[1751639495711,1.17304703,107930.0,107920.0,0.67901136]
[1751639495908,1.17292703,107930.0,107920.0,0.67901136]
[1751639496110,0.008,107930.0,107920.0,1.12520715]
[1751639496313,0.91156,107930.0,107920.0,1.45520715]
[1751639497223,0.008,107930.0,107920.0,1.45520715]
[1751639497626,0.91147358,107930.0,107920.0,1.45520715]
[1751639497820,0.91136,107930.0,107920.0,1.45520715]
[1751639498214,0.1169,107940.0,107920.0,1.45520715]
[1751639498215,0.2334969,107960.0,107950.0,0.1852095]
[1751639498423,1.14496052,107960.0,107950.0,0.4852095]
[1751639498624,1.14496052,107960.0,107950.0,0.56237748]
[1751639498828,1.09002052,107960.0,107950.0,1.00857327]
[1751639499125,0.00162822,107960.0,107950.0,1.35857327]
[1751639499311,0.00162822,107960.0,107950.0,1.47707327]
[1751639499520,0.2892559,107980.0,107970.0,0.1851752]
[1751639499715,1.4058801,107980.0,107970.0,0.4751752]
[1751639499920,1.4048801,107980.0,107970.0,0.5339752]
[1751639500117,0.4092541,107980.0,107970.0,0.5339752]
[1751639500317,1.3122141,107980.0,107970.0,0.98017099]
[1751639500718,1.3132141,107980.0,107970.0,0.5339752]
[1751639500922,1.85199549,107980.0,107970.0,0.1851752]
[1751639501226,0.1851751,107970.0,107960.0,0.38176779]
[1751639501426,0.2991751,107970.0,107960.0,0.66176779]
[1751639501612,0.2991751,107970.0,107960.0,0.72056779]
[1751639501818,0.2991751,107970.0,107960.0,0.59237269]
[1751639502023,0.3555751,107970.0,107960.0,0.59237269]
[1751639502921,0.3555751,107970.0,107960.0,0.5158694]
[1751639503121,0.37477274,107970.0,107960.0,0.5158694]
[1751639503316,0.82096853,107970.0,107960.0,0.32]
[1751639503516,0.1861923,107960.0,107950.0,0.01856798]
[1751639503720,0.1852266,107940.0,107930.0,0.07113728]
[1751639503927,1.53382239,107940.0,107930.0,0.50568098]
[1751639504129,1.1424266,107940.0,107930.0,0.95187677]
[1751639505224,1.1434266,107940.0,107930.0,0.95587677]
[1751639505622,1.1434266,107940.0,107930.0,0.50968098]
[1751639506226,1.1434266,107940.0,107930.0,0.50668098]
[1751639506625,1.1454266,107940.0,107930.0,0.50668098]
[1751639507129,1.1454266,107940.0,107930.0,0.56258098]
[1751639507623,1.1454266,107940.0,107930.0,0.50668098]
[1751639507828,1.2037266,107940.0,107930.0,0.50668098]
[1751639509725,1.2037266,107940.0,107930.0,0.56738098]
[1751639512029,1.1443866,107940.0,107930.0,1.01357677]
[1751639512632,1.1443866,107940.0,107930.0,0.56738098]
[1751639512926,1.59058239,107940.0,107930.0,0.01143728]
[1751639513234,1.64888239,107940.0,107930.0,0.01143728]
[1751639513434,1.2026866,107940.0,107930.0,0.51668098]
[1751639514029,1.2026866,107940.0,107930.0,0.57408098]
[1751639516334,1.2026866,107940.0,107930.0,0.38883728]
[1751639516629,0.1852609,107920.0,107910.0,0.07549224]
[1751639516834,1.53221669,107920.0,107910.0,0.36549224]
[1751639517035,1.64201669,107920.0,107910.0,0.36549224]
[1751639517235,1.64201669,107920.0,107910.0,0.29185331]
[1751639517436,1.64201669,107920.0,107910.0,0.05185331]
[1751639517634,1.64201669,107920.0,107910.0,0.00185331]
[1751639517840,1.64201669,107920.0,107910.0,0.00285331]
[1751639518137,1.64201669,107920.0,107910.0,0.02206526]
[1751639518736,1.64501669,107920.0,107910.0,0.02206526]
[1751639519027,1.64501669,107920.0,107910.0,0.00285331]
[1751639519235,1.64401669,107920.0,107910.0,0.00185331]
[1751639519535,1.64901669,107920.0,107910.0,0.00285331]
[1751639520134,1.64901669,107920.0,107910.0,0.31197791]
[1751639520434,1.64901669,107920.0,107910.0,0.02197791]
[1751639520629,1.27636004,107920.0,107910.0,0.07197791]
[1751639520839,1.27636004,107920.0,107910.0,0.33197791]
[1751639521138,1.27636004,107920.0,107910.0,0.51725601]
[1751639521538,1.27636004,107920.0,107910.0,0.33197791]
[1751639521939,1.27636004,107920.0,107910.0,0.51725601]
[1751639522426,1.27636004,107920.0,107910.0,0.33197791]
[1751639522739,1.27636004,107920.0,107910.0,0.51725601]
[1751639523944,1.27736004,107920.0,107910.0,0.51725601]
[1751639524144,1.27736004,107920.0,107910.0,0.57655601]
[1751639524436,0.1922609,107920.0,107910.0,1.0127518]
[1751639524645,1.0923809,107920.0,107910.0,1.4308518]
[1751639524943,1.0933809,107920.0,107910.0,1.4308518]
[1751639525330,1.0903809,107920.0,107910.0,1.4308518]
[1751639525639,1.1837809,107920.0,107910.0,1.4308518]
[1751639525939,0.0974,107920.0,107910.0,1.4308518]
[1751639526139,1.6252498,107950.0,107930.0,0.3241512]
[1751639526331,1.13088962,107940.0,107930.0,0.62198615]
[1751639526636,1.8919643,107950.0,107940.0,0.1852266]
[1751639526839,2.79123252,107950.0,107940.0,0.94142239]
[1751639527036,1.89159252,107950.0,107940.0,0.99952239]
[1751639527236,0.11179923,107960.0,107950.0,0.1852094]
[1751639527436,1.16196063,107960.0,107950.0,0.94140519]
[1751639527742,0.01919823,107960.0,107950.0,0.99680519]
[1751639528038,0.01919764,107970.0,107960.0,0.1851922]
[1751639528231,1.10385274,107970.0,107960.0,1.38460136]
[1751639528436,1.10485274,107970.0,107960.0,0.58840557]
[1751639528943,1.21545274,107970.0,107960.0,0.58840557]
[1751639529344,1.21545274,107970.0,107960.0,0.64710557]
[1751639529549,1.21645274,107970.0,107960.0,0.64810557]
[1751639531045,0.91967764,107970.0,107960.0,1.09430136]
[1751639531248,0.91967764,107970.0,107960.0,1.43430136]
[1751639531645,0.02019764,107970.0,107960.0,1.43430136]
[1751639531946,0.91911764,107970.0,107960.0,1.43430136]
[1751639532243,1.10629274,107970.0,107960.0,1.43430136]
[1751639532639,1.10629274,107970.0,107960.0,0.98810557]
[1751639532843,1.16389274,107970.0,107960.0,0.98810557]
[1751639533147,1.22099274,107970.0,107960.0,0.98810557]
[1751639533445,1.22099274,107970.0,107960.0,0.64810557]
[1751639534643,1.21799274,107970.0,107960.0,0.64710557]
[1751639534843,1.21899274,107970.0,107960.0,0.65110557]
[1751639535051,1.21899274,107970.0,107960.0,0.97110557]
[1751639535250,1.21899274,107970.0,107960.0,0.99110557]
[1751639535548,1.21899274,107970.0,107960.0,0.65110557]
[1751639535950,1.66518853,107970.0,107960.0,0.02181337]
[1751639536249,1.66518853,107970.0,107960.0,0.49698857]
[1751639536547,1.10359554,107970.0,107960.0,0.49698857]
[1751639536742,1.10359554,107970.0,107960.0,1.26318436]
[1751639536944,1.21419554,107970.0,107960.0,0.49698877]
[1751639537142,1.21419554,107970.0,107960.0,0.83698877]
[1751639537845,1.21419554,107970.0,107960.0,0.49698877]
[1751639538950,1.21519554,107970.0,107960.0,0.49698877]
[1751639539248,1.21519554,107970.0,107960.0,0.82698877]
[1751639539451,1.21419554,107970.0,107960.0,1.27318456]
[1751639539653,1.21419554,107970.0,107960.0,0.82698877]
[1751639539846,1.21519554,107970.0,107960.0,1.27318456]
[1751639540048,0.31695554,107970.0,107960.0,1.27318456]
[1751639540249,1.21471554,107970.0,107960.0,1.27318456]
[1751639540556,1.21471554,107970.0,107960.0,1.32948456]
[1751639541552,1.21471554,107970.0,107960.0,0.88328877]
[1751639541852,1.21471554,107970.0,107960.0,0.55328877]
[1751639542742,1.21471554,107970.0,107960.0,0.49698877]
[1751639548257,1.66091133,107970.0,107960.0,0.49698877]
[1751639548850,1.21471554,107970.0,107960.0,0.49698877]
[1751639549254,0.31695554,107970.0,107960.0,0.49698877]
[1751639549454,1.21363554,107970.0,107960.0,0.49698877]
[1751639550253,1.65983133,107970.0,107960.0,0.31181337]
[1751639550855,1.97983133,107970.0,107960.0,0.02181337]
[1751639552254,1.65983133,107970.0,107960.0,0.26698687]
[1751639552451,1.21363554,107970.0,107960.0,0.44698687]
[1751639552654,1.65983133,107970.0,107960.0,0.44698687]
[1751639553958,1.21363554,107970.0,107960.0,0.44698687]
[1751639554163,1.65983133,107970.0,107960.0,0.44698687]
[1751639555163,1.21363554,107970.0,107960.0,0.44698687]
[1751639555960,1.21263554,107970.0,107960.0,0.44698687]
[1751639556561,0.31595554,107970.0,107960.0,0.44698687]
[1751639556861,1.1924779,107970.0,107960.0,0.89318266]
[1751639557063,0.2967564,107970.0,107960.0,0.95098266]
[1751639557266,1.00728,107970.0,107960.0,1.43452159]
[1751639558167,0.89656,107970.0,107960.0,1.43452159]
[1751639558666,0.89656,107970.0,107960.0,1.45293133]
[1751639559660,1.081716,107970.0,107960.0,1.10293133]
[1751639560060,1.081716,107970.0,107960.0,1.41293133]
[1751639560867,0.89656,107970.0,107960.0,1.41293133]
[1751639561064,0.001,107970.0,107960.0,1.41293133]
[1751639561265,0.8962,107970.0,107960.0,1.42293133]
[1751639561453,1.0813556,107970.0,107960.0,1.42293133]
[1751639561658,0.8962,107970.0,107960.0,1.42293133]
[1751639562268,0.001,107970.0,107960.0,1.42293133]
[1751639562761,0.4508023,107990.0,107980.0,0.202689]
[1751639562959,0.29887378,108000.0,107990.0,0.1851212]
[1751639563155,0.29887378,108000.0,107990.0,0.93131699]
[1751639563359,1.19383378,108000.0,107990.0,1.04721699]
[1751639563561,1.20865518,108000.0,107990.0,1.04721699]
[1751639563771,1.20765518,108000.0,107990.0,0.6010212]
[1751639563960,1.20765518,108000.0,107990.0,0.67499561]
[1751639564169,0.37639518,108000.0,107990.0,0.67499561]
[1751639564359,1.27131518,108000.0,107990.0,0.67499561]
[1751639564757,1.27131518,108000.0,107990.0,0.55909561]
[1751639565565,1.27131518,108000.0,107990.0,0.57837162]
[1751639565769,1.27531518,108000.0,107990.0,0.57937162]
[1751639566162,1.27531518,108000.0,107990.0,0.50539721]
[1751639568269,1.72151097,108000.0,107990.0,0.32027601]
[1751639568472,1.72151097,108000.0,107990.0,0.50539781]
[1751639569461,2.08151097,108000.0,107990.0,0.001]
[1751639570168,2.52770676,108000.0,107990.0,0.001]
[1751639570674,2.08151097,108000.0,107990.0,0.001]
[1751639571276,0.1851218,107990.0,107980.0,0.1736872]
[1751639571476,1.14851759,107990.0,107980.0,0.51100756]
[1751639571667,1.14851759,107990.0,107980.0,0.33732036]
[1751639572370,1.14951759,107990.0,107980.0,0.52245926]
[1751639572775,0.81951759,107990.0,107980.0,0.52245926]
[1751639573377,0.81951759,107990.0,107980.0,0.33732036]
[1751639573671,1.10951759,107990.0,107980.0,0.33732036]
[1751639573876,1.18951759,107990.0,107980.0,0.33732036]
[1751639574077,0.82251759,107990.0,107980.0,0.33832036]
[1751639574372,1.38207759,107990.0,107980.0,0.01832036]
[1751639574677,0.185156,107970.0,107960.0,0.41582728]
[1751639574874,1.078716,107970.0,107960.0,0.60324088]
[1751639575175,1.67381179,107970.0,107960.0,0.55696098]
[1751639575377,1.67381179,107970.0,107960.0,0.29781337]
[1751639575765,1.67381179,107970.0,107960.0,0.48298657]
[1751639575971,1.67381179,107970.0,107960.0,0.48498657]
[1751639576171,1.67481179,107970.0,107960.0,0.48698657]
[1751639576569,1.67481179,107970.0,107960.0,0.30181337]
[1751639576970,2.03481179,107970.0,107960.0,0.02181337]
[1751639577166,2.03481179,107970.0,107960.0,0.004]
[1751639577369,2.03781179,107970.0,107960.0,0.003]
[1751639577571,2.03781179,107970.0,107960.0,0.333]
[1751639578476,2.03881179,107970.0,107960.0,0.331]
[1751639579473,2.03881179,107970.0,107960.0,0.001]
[1751639580781,1.67881179,107970.0,107960.0,0.001]
[1751639580971,2.04981179,107970.0,107960.0,0.321]
[1751639581873,2.04981179,107970.0,107960.0,0.061]
[1751639582073,2.04981179,107970.0,107960.0,0.291]
[1751639582274,2.04981179,107970.0,107960.0,0.061]
[1751639583268,2.04981179,107970.0,107940.0,0.31286296]
[1751639583269,0.1861904,107950.0,107940.0,0.31286296]
[1751639583478,0.1861904,107950.0,107940.0,0.50027166]
[1751639583479,1.52526619,107950.0,107940.0,0.50027166]
[1751639583675,1.66576619,107950.0,107940.0,0.50027166]
[1751639583878,1.0788704,107950.0,107940.0,0.94646745]
[1751639584079,1.0788704,107950.0,107940.0,0.71294607]
[1751639584377,1.0788704,107950.0,107940.0,0.63897166]
[1751639584679,1.0788704,107950.0,107940.0,0.64097166]
[1751639585279,1.1496704,107950.0,107940.0,0.64097166]
[1751639585677,1.1496704,107950.0,107940.0,0.71494607]
[1751639586375,1.1496704,107950.0,107940.0,0.64097166]
[1751639586978,1.1506704,107950.0,107940.0,0.64197166]
[1751639589284,0.2579904,107950.0,107940.0,0.64197166]
[1751639589478,1.1501104,107950.0,107940.0,0.64197166]
[1751639590776,1.1501104,107950.0,107940.0,1.08816745]
[1751639590976,1.1501104,107950.0,107940.0,1.42816745]
[1751639591478,1.1501104,107950.0,107940.0,0.64197166]
[1751639591777,1.1501104,107950.0,107940.0,0.99879799]
[1751639594191,1.0793104,107950.0,107940.0,0.64197166]
[1751639594589,1.0793104,107950.0,107940.0,0.31806416]
[1751639594794,1.86703673,107950.0,107940.0,0.50327106]
[1751639594998,1.57643673,107950.0,107940.0,0.50327106]
[1751639595202,1.0788298,107950.0,107940.0,1.23009739]
[1751639595391,1.0788298,107950.0,107940.0,1.37059739]
[1751639597196,1.43565613,107950.0,107940.0,1.00059739]
[1751639597397,1.43565613,107950.0,107940.0,0.64377106]
[1751639597599,1.58275613,107950.0,107940.0,0.50327106]
[1751639601199,1.58275613,107950.0,107940.0,0.57724547]
[1751639601696,1.2259298,107950.0,107940.0,0.57724547]
[1751639601903,1.58275613,107950.0,107940.0,0.57724547]
[1751639602700,1.58275613,107950.0,107940.0,0.50327106]
[1751639603603,1.58175613,107950.0,107940.0,0.50327106]
[1751639603903,1.58275613,107950.0,107940.0,0.50327106]
[1751639604704,1.58275613,107950.0,107940.0,0.50227106]
[1751639604905,1.58175613,107950.0,107940.0,0.50227106]
[1751639605107,1.58375613,107950.0,107940.0,0.50227106]
[1751639605399,1.58375613,107950.0,107940.0,0.29923245]
[1751639605797,1.58375613,107950.0,107940.0,0.48443975]
[1751639608306,1.60286417,107950.0,107940.0,0.48443975]
[1751639609007,1.60286417,107950.0,107940.0,0.55841416]
[1751639609807,1.60286417,107950.0,107940.0,0.48443975]
[1751639610402,1.60286417,107950.0,107940.0,0.55841416]
[1751639610908,1.60286417,107950.0,107940.0,0.48443975]
[1751639611805,1.24603784,107950.0,107940.0,0.48443975]
[1751639612005,1.60286417,107950.0,107940.0,0.55841416]
[1751639612207,1.24503784,107950.0,107940.0,0.55841416]
[1751639612408,1.60286417,107950.0,107940.0,0.55841416]
[1751639612605,0.35439784,107950.0,107940.0,0.91524049]
[1751639612805,1.09665784,107950.0,107940.0,1.26524049]
[1751639613110,1.45448417,107950.0,107940.0,0.62871376]
[1751639613310,1.60088417,107950.0,107940.0,0.55841376]
[1751639613905,1.60088417,107950.0,107940.0,0.37320686]
[1751639614411,1.60088417,107950.0,107940.0,0.29923245]
[1751639614918,1.93088417,107950.0,107940.0,0.48443935]
[1751639615106,1.60088417,107950.0,107940.0,0.48443935]
[1751639615912,1.98088417,107950.0,107940.0,0.48443935]
[1751639616114,1.92088417,107950.0,107940.0,0.48443935]
[1751639616306,1.60088417,107950.0,107940.0,0.48443935]
[1751639616507,1.67602205,107950.0,107940.0,0.48443935]
[1751639618615,1.31919572,107950.0,107940.0,0.48443935]
[1751639618812,1.67602205,107950.0,107940.0,0.48443935]
[1751639619715,1.31919572,107950.0,107940.0,0.48443935]
[1751639619914,1.67602205,107950.0,107940.0,0.48443935]
[1751639620916,2.04602205,107950.0,107940.0,0.29923245]
[1751639621109,2.05602205,107950.0,107940.0,0.29923245]
[1751639621314,1.67602205,107950.0,107940.0,0.48443935]
[1751639621516,1.98602205,107950.0,107940.0,0.48443935]
[1751639621702,1.67602205,107950.0,107940.0,0.29923245]
[1751639621907,1.31919572,107950.0,107940.0,0.48443925]
[1751639622108,2.01602205,107950.0,107940.0,0.282]
[1751639622303,0.1852412,107920.0,107910.0,0.32546328]
[1751639622512,1.45127877,107920.0,107910.0,0.6028977]
[1751639622814,1.98247877,107920.0,107910.0,0.6028977]
[1751639623016,1.99247877,107920.0,107910.0,0.5565847]
[1751639623217,2.04247877,107920.0,107910.0,0.5565847]
[1751639623418,1.66247877,107920.0,107910.0,0.5565847]
[1751639623608,1.66347877,107920.0,107910.0,0.5615847]
[1751639623809,2.02347877,107920.0,107910.0,0.5615847]
[1751639624010,1.66347877,107920.0,107910.0,0.46898907]
[1751639624212,1.99347877,107920.0,107910.0,0.5615847]
[1751639624413,1.66347877,107920.0,107910.0,0.46898907]
[1751639624620,1.30665244,107920.0,107910.0,0.46898907]
[1751639624816,1.66447877,107920.0,107910.0,0.47398907]
[1751639628420,1.30765244,107920.0,107910.0,0.47398907]
[1751639628621,1.30765244,107920.0,107910.0,0.8308154]
[1751639628922,1.30765244,107920.0,107910.0,0.9708154]
[1751639629718,1.30733244,107920.0,107910.0,0.61398907]
[1751639632621,0.41793244,107920.0,107910.0,0.61398907]
[1751639632821,1.30713244,107920.0,107910.0,0.61398907]
[1751639633022,1.30713244,107920.0,107910.0,0.9708154]
[1751639633613,0.02149124,107920.0,107910.0,1.2908154]
[1751639633818,0.002,107920.0,107910.0,1.64764173]
[1751639634020,1.0763212,107920.0,107910.0,1.2908154]
[1751639635532,1.0763212,107920.0,107910.0,0.61398907]
[1751639635726,1.43314753,107920.0,107910.0,0.54298907]
[1751639635922,1.64314753,107920.0,107910.0,0.54298907]
[1751639637020,1.64314753,107920.0,107910.0,0.47398907]
[1751639638730,1.64314753,107920.0,107910.0,0.49168976]
[1751639640730,1.64314753,107920.0,107910.0,0.47568976]
[1751639641117,1.64314753,107920.0,107910.0,0.30495993]
[1751639641431,1.64314753,107920.0,107910.0,0.49021833]
[1751639641825,1.64314753,107920.0,107910.0,0.30495993]
[1751639642030,1.64314753,107920.0,107910.0,0.05770069]